bitfinex-derivatives/quotes_ETHF0:USTF0_20250422
["timestamp","ask_amount","ask_price","bid_price","bid_amount"]
[1745291525959,1.82672441,1573.2,1573.1,7.71864]
[1745291526165,0.00952441,1573.2,1573.1,12.71864]
[1745291527363,1.8518,1573.4,1573.1,12.71864]
[1745291527364,13.06954528,1574.1,1573.1,11.4473]
[1745291527569,1.8518,1574.0,1573.8,1.27074]
[1745291527770,1.8518,1574.0,1573.9,1.2707]
[1745291528172,1.8518,1574.0,1573.9,6.322]
[1745291528470,1.8518,1574.0,1573.9,7.5927]
[1745291530669,3.12242,1574.0,1573.9,6.322]
[1745291531173,3.12242,1574.0,1573.8,1.28022441]
[1745291531370,1.8074,1573.9,1573.8,1.28022441]
[1745291531572,3.0781,1573.9,1573.8,1.28022441]
[1745291531972,3.0781,1573.9,1573.8,0.00952441]
[1745291533466,6.2859,1573.9,1573.8,0.00952441]
[1745291533771,6.2859,1573.9,1573.5,4.47878]
[1745291533772,1.27094,1573.7,1573.5,4.4788]
[1745291533971,1.8074,1573.6,1573.5,4.4788]
[1745291534176,3.07834,1573.6,1573.5,4.4788]
[1745291534363,3.07834,1573.6,1573.5,1.271]
[1745291535171,1.27102,1573.5,1573.4,0.00952441]
[1745291535385,2.95242,1573.5,1573.4,0.00952441]
[1745291536576,13.06693,1573.5,1572.9,4.47929]
[1745291536773,1.27139,1573.1,1572.9,3.2078]
[1745291536973,1.6814,1573.0,1572.9,4.47926]
[1745291537174,1.6814,1573.0,1572.9,10.80126]
[1745291538372,0.00952441,1573.1,1573.0,1.27143]
[1745291538574,0.00952441,1573.1,1573.0,4.84393]
[1745291539180,0.00952441,1573.1,1573.0,11.16593]
[1745291539570,1.28086441,1573.1,1573.0,8.1135]
[1745291539776,1.28086441,1573.1,1573.0,6.322]
[1745291540080,0.00952441,1573.1,1573.0,7.59343]
[1745291541071,1.6812,1573.4,1573.3,1.27118]
[1745291541276,2.9523,1573.4,1573.3,1.27118]
[1745291541581,1.6812,1573.4,1573.3,1.27118]
[1745291542078,2.95235,1573.4,1573.2,1.2712]
[1745291542285,1.8061,1573.3,1573.2,7.5932]
[1745291543284,3.07728,1573.3,1573.2,7.5932]
[1745291543474,1.8061,1573.3,1573.2,7.5932]
[1745291546485,3.07728,1573.3,1573.2,7.5932]
[1745291548187,3.07728,1573.3,1573.2,7.59326]
[1745291548390,1.8061,1573.3,1573.2,7.59326]
[1745291549290,3.07728,1573.3,1573.2,7.59326]
[1745291549489,1.8061,1573.3,1573.2,7.59326]
[1745291549689,1.8061,1573.3,1573.2,6.322]
[1745291550591,3.07728,1573.3,1573.2,7.59326]
[1745291552095,1.8061,1573.3,1573.2,7.59326]
[1745291552791,0.00952441,1573.5,1573.4,1.2711]
[1745291553093,0.00952441,1573.5,1573.4,10.8009]
[1745291553290,0.00952441,1573.5,1573.4,11.7129]
[1745291553593,1.28054441,1573.5,1573.4,11.7129]
[1745291553789,1.79792441,1573.5,1573.4,10.8009]
[1745291554795,3.06894441,1573.5,1573.4,10.8009]
[1745291555186,1.79792441,1573.5,1573.4,10.8009]
[1745291556488,3.06894441,1573.5,1573.4,10.8009]
[1745291558594,1.79792441,1573.5,1573.4,10.8009]
[1745291559395,0.00952441,1573.5,1573.4,10.8009]
[1745291559593,5.984,1574.0,1573.9,1.2707]
[1745291559904,1.7867,1574.0,1573.9,1.2707]
[1745291560090,1.7867,1574.0,1573.9,7.5927]
[1745291560291,3.05986,1574.2,1574.1,1.27054]
[1745291560495,4.84656,1574.2,1574.1,1.27054]
[1745291560699,4.84656,1574.2,1573.9,9.3138]
[1745291560700,4.84656,1574.2,1574.0,1.27056]
[1745291560900,1.7867,1574.1,1574.0,1.28008441]
[1745291561197,1.7867,1574.1,1574.0,7.60208441]
[1745291561800,1.7867,1574.1,1574.0,10.80988441]
[1745291562692,3.05724,1574.1,1574.0,9.53932441]
[1745291563000,3.05724,1574.1,1574.0,10.80994441]
[1745291563202,3.05724,1574.1,1574.0,9.53932441]
[1745291563600,3.05724,1574.1,1574.0,10.80994441]
[1745291564201,3.05724,1574.1,1574.0,9.53932441]
[1745291564797,1.7867,1574.1,1574.0,10.80994441]
[1745291564999,3.05724,1574.1,1574.0,10.80994441]
[1745291565204,3.05724,1574.1,1574.0,9.53932441]
[1745291565705,3.05724,1574.1,1574.0,10.80994441]
[1745291566406,1.7867,1574.1,1574.0,10.80994441]
[1745291567506,3.05724,1574.1,1574.0,10.80994441]
[1745291568100,1.7867,1574.1,1574.0,10.80994441]
[1745291568296,8.05724,1574.1,1574.0,6.33152441]
[1745291568501,8.05724,1574.1,1574.0,3.10468]
[1745291568701,8.05724,1574.1,1574.0,2.04728001]
[1745291569407,3.17656,1574.0,1573.6,1.27094]
[1745291569709,1.27092,1573.7,1573.6,0.00952441]
[1745291571008,3.08002,1573.7,1573.6,0.00952441]
[1745291576707,1.8091,1573.7,1573.6,1.28046441]
[1745291576912,1.8091,1573.7,1573.6,6.21416441]
[1745291577414,1.8091,1573.7,1573.6,3.00636441]
[1745291577713,3.07996,1573.7,1573.6,3.00636441]
[1745291578016,3.07996,1573.7,1573.6,1.73542441]
[1745291578611,3.07996,1573.7,1573.6,3.00636441]
[1745291579214,1.8091,1573.7,1573.6,3.00636441]
[1745291580516,3.2078,1574.1,1573.8,1.27078]
[1745291580717,1.7495,1574.1,1574.0,1.27062]
[1745291581211,1.7495,1574.1,1574.0,9.41782]
[1745291582417,3.02004,1574.1,1574.0,9.41782]
[1745291582610,3.02004,1574.1,1574.0,6.322]
[1745291583315,3.02006,1574.1,1573.9,3.2078]
[1745291583515,3.07672,1574.0,1573.9,4.4785]
[1745291583715,1.8061,1574.0,1573.9,4.4785]
[1745291583915,1.8061,1574.0,1573.9,1.2707]
[1745291584119,1.8061,1574.0,1573.9,7.5927]
[1745291584418,3.07672,1574.0,1573.9,6.322]
[1745291584621,3.91412,1574.0,1573.9,6.322]
[1745291585020,3.91412,1574.0,1573.9,7.5927]
[1745291585219,2.6435,1574.0,1573.9,7.5927]
[1745291585819,1.8061,1574.0,1573.9,7.5927]
[1745291586020,1.8061,1574.0,1573.9,9.3154]
[1745291587015,2.1566,1574.2,1574.1,1.27054]
[1745291587315,3.8316,1574.2,1574.1,1.27054]
[1745291587819,2.5611,1574.2,1574.1,1.27054]
[1745291588031,3.83156,1574.2,1574.1,1.27054]
[1745291589827,1.675,1574.2,1574.1,1.27054]
[1745291590032,1.675,1574.2,1574.1,7.92794]
[1745291590933,0.00952441,1574.3,1574.2,1.27046]
[1745291591320,2.95680441,1574.3,1574.2,1.27046]
[1745291591734,1.68642441,1574.3,1574.2,1.27046]
[1745291593737,0.00952441,1574.3,1574.2,1.27046]
[1745291594031,4.97488106,1574.8,1574.7,1.27005]
[1745291594230,1.27006,1574.7,1574.6,1.27008]
[1745291594431,1.27004,1574.8,1574.6,1.27008]
[1745291594631,1.27004,1574.8,1574.7,1.27005]
[1745291595334,1.78842441,1574.9,1574.6,1.27959441]
[1745291595536,3.04074,1574.8,1574.7,1.27005]
[1745291595836,3.04074,1574.8,1574.6,1.27960441]
[1745291596037,1.7707,1574.7,1574.6,1.27960441]
[1745291596435,3.04075,1574.7,1574.6,1.27960441]
[1745291596738,3.04075,1574.7,1574.6,0.00952441]
[1745291597126,8.04075,1574.7,1574.2,3.2078]
[1745291597340,3.2078,1574.4,1573.9,1.7646]
[1745291597538,3.2078,1574.4,1574.0,1.27056]
[1745291597539,2.6871,1574.3,1574.0,1.27056]
[1745291597736,3.04121,1574.2,1574.0,1.27056]
[1745291598036,1.7707,1574.1,1574.0,1.27056]
[1745291599034,3.04129,1574.1,1573.9,0.00952441]
[1745291599242,1.7707,1574.1,1574.0,1.27062]
[1745291599537,2.15353,1574.2,1574.0,1.27062]
[1745291600239,2.15353,1574.2,1574.0,1.27058]
[1745291600438,0.883,1574.2,1574.0,1.27058]
[1745291600740,1.27058,1574.1,1573.9,1.28018441]
[1745291601442,1.27062,1574.0,1573.9,0.00952441]
[1745291601830,1.27062,1574.0,1573.9,1.28022441]
[1745291602037,1.28012441,1574.1,1573.9,1.28022441]
[1745291602640,1.28007441,1574.1,1573.9,1.85412441]
[1745291603641,1.28007441,1574.1,1573.9,3.12477441]
[1745291603938,1.28007441,1574.1,1574.0,1.27062]
[1745291604141,1.27062,1574.0,1573.9,3.12476441]
[1745291604340,1.27062,1574.0,1573.9,0.00952441]
[1745291604737,1.27062,1574.0,1573.9,1.28022441]
[1745291605131,1.28011441,1574.1,1573.9,1.28022441]
[1745291605541,1.27062,1574.0,1573.9,1.28022441]
[1745291606442,1.28009441,1574.1,1573.9,1.28022441]
[1745291606942,1.27062,1574.0,1573.9,1.28022441]
[1745291607142,1.28012441,1574.1,1573.9,1.28022441]
[1745291607539,0.00952441,1574.1,1574.0,1.27062]
[1745291608144,1.28006441,1574.1,1573.9,3.09596441]
[1745291608345,1.27062,1574.0,1573.9,0.00952441]
[1745291608846,1.28008441,1574.1,1574.0,1.27062]
[1745291609644,1.27062,1574.0,1573.9,3.09598441]
[1745291609845,3.00432,1574.0,1573.9,3.09598441]
[1745291610348,3.00432,1574.0,1573.9,0.00952441]
[1745291611441,1.7337,1574.0,1573.9,1.28022441]
[1745291611741,1.7337,1574.0,1573.9,3.11382441]
[1745291612339,1.7337,1574.0,1573.9,6.32162441]
[1745291612648,1.7337,1574.0,1573.9,3.11382441]
[1745291613949,3.00432,1574.0,1573.9,0.00952441]
[1745291614148,8.00432,1574.0,1573.9,0.00952441]
[1745291614852,8.11720307,1574.0,1573.9,0.00952441]
[1745291616552,8.00432,1574.0,1573.9,0.00952441]
[1745291616758,8.11720625,1574.0,1573.9,0.00952441]
[1745291617058,1.27116,1573.4,1573.3,1.27116]
[1745291617355,1.271,1573.6,1573.4,1.2711]
[1745291617558,1.6999,1573.5,1573.4,1.2711]
[1745291617752,1.6999,1573.5,1573.4,2.9881]
[1745291618262,1.6999,1573.7,1573.6,1.27094]
[1745291618458,1.27094,1573.6,1573.5,1.27102]
[1745291618959,1.27094,1573.6,1573.4,3.82514]
[1745291619554,10.00889,1573.9,1573.5,1.27102]
[1745291619856,6.38482,1573.8,1573.4,3.82514]
[1745291620056,1.27099,1573.6,1573.5,1.27102]
[1745291621161,6.8321,1573.9,1573.5,14.4508]
[1745291621354,6.8321,1573.9,1573.8,1.27078]
[1745291621548,1.28007441,1574.1,1573.8,4.547]
[1745291621754,1.28007441,1574.1,1573.9,2.14523]
[1745291621952,1.28007441,1574.1,1574.0,1.27062]
[1745291622960,0.00952441,1574.1,1574.0,1.27062]
[1745291623162,0.00952441,1574.1,1574.0,3.85392]
[1745291624964,0.00952441,1574.1,1573.7,3.2078]
[1745291625164,1.27062,1574.0,1573.8,1.27074]
[1745291625367,0.00952441,1574.1,1573.8,1.27074]
[1745291625368,1.2707,1573.9,1573.8,0.9146]
[1745291625664,1.2707,1573.9,1573.8,2.18538]
[1745291625959,1.2707,1573.9,1573.8,0.9146]
[1745291626965,1.2707,1573.9,1573.8,2.18538]
[1745291627667,2.11437,1574.0,1573.8,2.18532]
[1745291627962,2.11437,1574.0,1573.8,3.98692]
[1745291628263,1.2707,1573.9,1573.8,2.7162]
[1745291629266,0.00952441,1574.1,1574.0,1.27062]
[1745291629958,0.00952441,1574.1,1574.0,3.04082]
[1745291632468,1.28006441,1574.1,1574.0,3.04082]
[1745291632669,3.00906441,1574.1,1574.0,3.04082]
[1745291633771,1.73852441,1574.1,1574.0,3.04082]
[1745291634169,3.00906441,1574.1,1574.0,3.04082]
[1745291635067,1.73852441,1574.1,1573.9,7.7538]
[1745291635272,2.94682,1574.0,1573.9,7.7538]
[1745291635471,1.6762,1574.0,1573.9,9.0245]
[1745291635862,1.6762,1574.0,1573.9,10.8756]
[1745291636469,1.6762,1574.0,1573.9,9.0245]
[1745291637672,1.6762,1574.0,1573.9,5.8167]
[1745291639570,1.6762,1574.0,1573.9,7.6143]
[1745291639868,0.00952441,1574.1,1574.0,1.27062]
[1745291640071,0.00952441,1574.1,1574.0,3.99032]
[1745291640474,0.00952441,1574.1,1573.9,4.546]
[1745291640674,1.2707,1573.9,1573.8,3.2078]
[1745291640865,1.2707,1573.9,1573.7,5.81684]
[1745291641172,1.27094,1573.6,1573.5,4.546]
[1745291641869,2.18501,1573.7,1573.5,5.81694]
[1745291642070,1.8132,1573.6,1573.5,5.81694]
[1745291643169,1.8132,1573.6,1573.5,7.63924]
[1745291643672,1.27082,1573.8,1573.7,1.27086]
[1745291643975,2.16114,1573.9,1573.8,1.27078]
[1745291644275,2.16114,1573.9,1573.7,2.16019]
[1745291645074,1.8124,1573.8,1573.7,3.95569]
[1745291645876,2.12545,1574.0,1573.9,1.2707]
[1745291646978,2.12545,1574.0,1573.8,3.06621]
[1745291647171,1.7869,1573.9,1573.8,3.06621]
[1745291647371,3.0576,1573.9,1573.8,1.27071]
[1745291647871,3.0576,1573.9,1573.7,2.16019]
[1745291648071,1.7869,1573.8,1573.7,2.16019]
[1745291648274,3.05768,1573.8,1573.7,0.8894]
[1745291648473,3.17729,1573.7,1573.3,40.80952441]
[1745291648673,1.27118,1573.3,1573.2,3.2078]
[1745291648979,1.27118,1573.3,1573.2,11.63303326]
[1745291649172,1.27118,1573.3,1573.2,52.43303326]
[1745291649372,1.27118,1573.3,1573.2,53.70429326]
[1745291649775,1.27118,1573.3,1573.2,8.42523326]
[1745291649972,7.16388,1573.3,1573.2,8.42523326]
[1745291650384,9.43323037,1573.3,1573.2,8.42523326]
[1745291650680,3.93228,1573.3,1573.2,8.42523326]
[1745291651484,3.93228,1573.3,1573.2,9.69649326]
[1745291651485,2.6611,1573.3,1573.2,9.69649326]
[1745291651679,1.7684,1573.3,1573.2,9.69649326]
[1745291651875,1.7684,1573.3,1573.2,14.62779326]
[1745291652182,3.03189,1573.6,1573.4,1.27104]
[1745291652379,1.7684,1573.5,1573.4,5.78104]
[1745291652578,1.7684,1573.5,1573.4,8.98884]
[1745291652780,4.47861,1573.8,1573.6,1.2709]
[1745291652970,2.94918,1573.7,1573.5,3.96538]
[1745291653384,1.6783,1573.6,1573.5,3.96538]
[1745291655772,1.27073,1573.9,1573.5,7.73277663]
[1745291655979,2.94903,1573.9,1573.7,1.27082]
[1745291656183,2.94903,1573.9,1573.7,5.78082]
[1745291656385,1.8563,1573.8,1573.7,49.31102]
[1745291656584,3.12708,1573.8,1573.7,49.31102]
[1745291656777,3.12708,1573.8,1573.7,49.34939663]
[1745291657288,3.12708,1573.8,1573.7,46.26627663]
[1745291658087,1.8563,1573.8,1573.7,47.53713663]
[1745291658777,0.00952441,1574.1,1573.8,3.17696]
[1745291658982,1.86582441,1574.1,1574.0,1.27062]
[1745291659194,1.86582441,1574.1,1574.0,5.78062]
[1745291659687,1.86582441,1574.1,1574.0,5.81899663]
[1745291660485,1.86582441,1574.1,1574.0,5.847672]
[1745291660991,3.13636441,1574.1,1574.0,4.577052]
[1745291661381,3.13636441,1574.1,1574.0,5.847672]
[1745291661981,3.13636441,1574.1,1574.0,4.577052]
[1745291662185,3.13636441,1574.1,1574.0,0.067052]
[1745291666187,1.86582441,1574.1,1574.0,1.337672]
[1745291666388,1.86582441,1574.1,1574.0,0.067052]
[1745291666582,3.13636441,1574.1,1574.0,0.067052]
[1745291666784,4.02076441,1574.1,1574.0,0.067052]
[1745291668286,1.86582441,1574.1,1574.0,1.337672]
[1745291668486,0.00952441,1574.1,1574.0,7.111272]
[1745291671489,0.00952441,1574.1,1574.0,12.111272]
[1745291671696,1.7268,1574.4,1574.3,1.27038]
[1745291671894,1.7268,1574.4,1574.3,5.77938]
[1745291672492,1.7268,1574.4,1574.3,9.399732]
[1745291672688,0.8543,1574.6,1574.5,1.27021]
[1745291672895,2.5811,1574.6,1574.5,1.27021]
[1745291673395,1.7268,1574.6,1574.5,1.27021]
[1745291673594,1.7268,1574.6,1574.5,1.337262]
[1745291673885,1.7268,1574.6,1574.5,3.180662]
[1745291675995,2.99693,1574.6,1574.5,1.337262]
[1745291676194,3.91823,1574.6,1574.5,1.337262]
[1745291677594,2.6481,1574.6,1574.5,1.337262]
[1745291678396,1.7268,1574.6,1574.5,1.337262]
[1745291681196,1.7268,1574.6,1574.5,3.052562]
[1745291681702,2.99693,1574.6,1574.5,1.337262]
[1745291682484,2.99693,1574.6,1574.5,0.067052]
[1745291682693,2.99693,1574.6,1574.5,1.337262]
[1745291683599,1.7268,1574.6,1574.5,4.545062]
[1745291686501,1.7268,1574.6,1574.5,1.337262]
[1745291686999,1.7268,1574.6,1574.5,4.545062]
[1745291687401,1.7268,1574.6,1574.5,6.352562]
[1745291687695,0.00952441,1574.7,1574.6,1.27013]
[1745291687895,0.00952441,1574.7,1574.6,8.47063]
[1745291688499,0.00952441,1574.7,1574.6,0.067052]
[1745291688695,2.20637441,1574.7,1574.6,0.067052]
[1745291689094,3.97907441,1574.7,1574.6,0.067052]
[1745291689295,3.97907441,1574.7,1574.6,0.05752759]
[1745291690195,10.30107441,1574.7,1574.6,0.05752759]
[1745291691796,9.03102441,1574.7,1574.6,0.05752759]
[1745291692207,3.97907441,1574.7,1574.6,1.32765759]
[1745291692399,3.97907441,1574.7,1574.6,0.05752759]
[1745291693205,10.30107441,1574.7,1574.6,0.05752759]
[1745291695204,3.97907441,1574.7,1574.6,0.05752759]
[1745291698104,10.30107441,1574.7,1574.6,0.05752759]
[1745291701113,3.97907441,1574.7,1574.6,0.05752759]
[1745291702413,10.30107441,1574.7,1574.6,0.05752759]
[1745291704324,15.30107441,1574.7,1574.6,0.05752759]
[1745291704625,10.30107441,1574.7,1574.6,0.05752759]
[1745291705218,3.97907441,1574.7,1574.6,0.05752759]
[1745291708322,1.78222441,1574.7,1574.6,1.32765759]
[1745291708624,1.78222441,1574.7,1574.6,4.02925759]
[1745291708925,1.78222441,1574.7,1574.6,8.53325759]
[1745291709623,3.05227441,1574.7,1574.6,4.56152759]
[1745291710426,1.78222441,1574.7,1574.6,5.83165759]
[1745291710730,1.78222441,1574.7,1574.6,8.49695759]
[1745291710923,0.0149,1574.8,1574.7,1.27005]
[1745291711222,2.6761,1574.9,1574.7,2.6765]
[1745291711426,3.94599,1574.9,1574.8,1.32749759]
[1745291711631,0.8571,1575.1,1575.0,1.26981]
[1745291711816,1.8002,1575.1,1575.0,1.26981]
[1745291712024,3.06995,1575.1,1574.9,9.86793]
[1745291712221,3.06995,1575.1,1575.0,1.26981]
[1745291712422,3.06995,1575.1,1575.0,1.32733759]
[1745291712625,1.8002,1575.1,1575.0,1.32733759]
[1745291713114,1.8002,1575.1,1575.0,3.16353759]
[1745291713430,3.06993,1575.1,1575.0,1.89372759]
[1745291713727,3.06993,1575.1,1575.0,0.05752759]
[1745291714829,1.8002,1575.1,1575.0,1.32733759]
[1745291715329,0.02442441,1575.2,1575.1,1.26973]
[1745291715529,0.02442441,1575.2,1575.1,5.37743]
[1745291715830,0.00952441,1575.2,1575.1,5.37743]
[1745291716024,1.80912441,1575.2,1575.1,2.16963]
[1745291716530,1.27917441,1575.2,1575.1,0.95742759]
[1745291716828,1.80912441,1575.2,1575.1,2.22715759]
[1745291717131,1.80912441,1575.2,1575.1,3.97755759]
[1745291717326,1.80912441,1575.2,1575.1,7.18535759]
[1745291717631,1.80912441,1575.2,1575.1,3.97755759]
[1745291718531,3.07877441,1575.2,1575.1,2.70782759]
[1745291718941,1.80912441,1575.2,1575.1,3.97755759]
[1745291719225,1.80912441,1575.2,1575.1,7.18535759]
[1745291719526,0.00952441,1575.2,1575.1,7.18535759]
[1745291722327,3.10601,1575.5,1575.1,14.08987759]
[1745291722532,2.19461,1575.5,1575.4,1.26949]
[1745291722728,2.19461,1575.5,1575.3,4.53483759]
[1745291723032,2.19461,1575.5,1575.3,0.05752759]
[1745291723033,1.26949,1575.4,1575.3,0.05752759]
[1745291723331,3.09569,1575.4,1575.3,0.05752759]
[1745291724127,9.41769,1575.4,1575.3,0.05752759]
[1745291725338,14.41769,1575.4,1575.3,0.02357878]
[1745291726127,15.30979,1575.4,1575.3,0.02357878]
[1745291726730,15.4225732,1575.4,1575.3,0.02357878]
[1745291727026,21.4065732,1575.4,1575.3,0.02357878]
[1745291727232,21.40657797,1575.4,1575.3,0.02357878]
[1745291728032,1.26973,1575.1,1575.0,4.51252441]
[1745291728336,7.59173,1575.1,1575.0,0.00952441]
[1745291729032,10.30413,1575.1,1575.0,0.00952441]
[1745291732338,10.30413,1575.1,1575.0,1.27933441]
[1745291732639,8.1698,1575.1,1575.0,1.27933441]
[1745291733038,6.322,1575.1,1575.0,1.27933441]
[1745291733237,1.7504,1575.2,1575.1,1.26973]
[1745291733540,2.12762,1575.4,1575.2,1.26958]
[1745291733735,3.87802,1575.4,1575.3,1.26957]
[1745291733940,3.87802,1575.4,1575.2,3.07018]
[1745291734233,3.87802,1575.4,1575.3,1.26957]
[1745291734436,2.6085,1575.4,1575.2,3.07018]
[1745291734636,1.26957,1575.3,1575.2,3.07018]
[1745291734839,3.01997,1575.3,1575.2,3.07018]
[1745291735237,3.01997,1575.3,1575.1,6.63327]
[1745291735431,0.8581,1575.4,1575.1,6.63327]
[1745291735432,3.08905,1575.2,1575.1,5.3636]
[1745291735741,3.08905,1575.2,1575.1,4.503]
[1745291736244,1.26973,1575.1,1575.0,0.00952441]
[1745291736443,4.77533,1575.1,1575.0,0.00952441]
[1745291736738,4.77533,1575.1,1574.4,13.92823326]
[1745291736739,3.17487,1574.9,1574.4,13.92823326]
[1745291737042,1.27013,1574.6,1574.5,1.27021]
[1745291737236,1.27008,1574.7,1574.6,1.27013]
[1745291737437,3.08948,1574.7,1574.5,3.07625]
[1745291738247,3.08953,1574.6,1574.5,1.8061]
[1745291738741,1.27021,1574.5,1574.4,47.21702441]
[1745291738939,3.00351,1574.5,1574.4,47.21702441]
[1745291739445,3.00351,1574.5,1574.4,42.71402441]
[1745291741746,3.00351,1574.5,1574.4,1.91402441]
[1745291741950,3.00351,1574.5,1574.4,1.00952441]
[1745291742543,3.87031,1574.5,1574.4,1.00952441]
[1745291743042,8.87031,1574.5,1574.4,1.00952441]
[1745291743341,1.27029,1574.4,1574.3,4.41e-06]
[1745291743547,7.02269,1574.4,1574.3,4.41e-06]
[1745291743747,12.13554644,1574.4,1574.3,4.41e-06]
[1745291744046,12.02269,1574.4,1574.3,4.41e-06]
[1745291744248,18.34469,1574.4,1574.3,4.41e-06]
[1745291744941,18.83989754,1574.4,1574.3,4.41e-06]
[1745291747036,13.83989754,1574.4,1574.3,4.41e-06]
[1745291747338,2.94789,1574.4,1574.3,4.41e-06]
[1745291747748,1.6776,1574.4,1574.3,1.78690441]
[1745291747949,2.94789,1574.4,1574.3,1.78690441]
[1745291748749,1.6776,1574.4,1574.3,1.78690441]
[1745291748942,1.27026,1574.5,1574.3,6.78690441]
[1745291749141,1.8181,1574.5,1574.3,1.78690441]
[1745291749342,3.08833,1574.5,1574.4,1.81559842]
[1745291750251,3.08833,1574.5,1574.4,0.02869842]
[1745291751444,6.29613,1574.5,1574.4,0.02869842]
[1745291752150,12.61813,1574.5,1574.4,0.02869842]
[1745291752651,9.41033,1574.5,1574.4,0.02869842]
[1745291753137,3.08833,1574.5,1574.4,0.02869842]
[1745291753750,1.27029,1574.4,1574.3,4.41e-06]
[1745291753952,2.95139,1574.4,1574.3,4.41e-06]
[1745291754142,14.38624682,1574.4,1574.3,4.41e-06]
[1745291754344,1.27038,1574.3,1574.2,0.00872882]
[1745291754539,7.05388,1574.3,1574.2,0.00872882]
[1745291755049,7.16674557,1574.3,1574.2,0.00872882]
[1745291755249,13.48874557,1574.3,1574.2,0.00872882]
[1745291756352,18.48874557,1574.3,1574.2,0.00872882]
[1745291756556,1.2707,1573.9,1573.8,4.702]
[1745291756947,1.2707,1573.9,1573.8,0.2]
[1745291757148,3.9389,1573.9,1573.8,0.2]
[1745291760053,3.067,1573.9,1573.8,0.2]
[1745291762350,1.2707,1573.9,1573.8,0.2]
[1745291762551,1.2707,1573.9,1573.8,1.8758]
[1745291763155,1.2707,1573.9,1573.8,0.2]
[1745291763957,3.0657,1573.9,1573.8,0.2]
[1745291764155,3.9115,1573.9,1573.8,0.2]
[1745291767464,3.9115,1573.9,1573.8,1e-05]
[1745291767666,9.02438929,1573.9,1573.8,1e-05]
[1745291767967,1.27102,1573.5,1573.4,0.9158]
[1745291768867,3.97432,1573.5,1573.4,0.9158]
[1745291769053,3.97432,1573.5,1573.2,4.501]
[1745291769054,1.27118,1573.3,1573.2,4.501]
[1745291770864,2.99838,1573.3,1573.2,4.501]
[1745291771463,1.27123,1573.3,1573.1,3.96943]
[1745291771665,1.27123,1573.3,1573.2,2.7328]
[1745291772464,1.27123,1573.3,1573.2,0.9096]
[1745291775267,1.27123,1573.3,1573.2,2.7486]
[1745291778855,4.91299,1573.6,1573.2,12.22766]
[1745291779060,1.27113,1573.4,1573.3,6.2879]
[1745291779269,0.8766,1573.9,1573.3,7.68096]
[1745291779466,1.27074,1573.9,1573.7,4.47864]
[1745291779666,0.00952441,1574.0,1573.9,1.2707]
[1745291779873,1.28014441,1574.0,1573.9,3.2078]
[1745291780170,0.00952441,1574.0,1573.9,8.2078]
[1745291780357,0.00952441,1574.0,1573.9,9.4785]
[1745291780564,1.28014441,1574.0,1573.9,9.4785]
[1745291780965,1.28014441,1574.0,1573.9,8.2078]
[1745291781269,1.28014441,1574.0,1573.9,14.5298]
[1745291781472,1.28014441,1574.0,1573.9,15.8005]
[1745291782176,1.28014441,1574.0,1573.9,9.4785]
[1745291782369,1.28014441,1574.0,1573.9,8.2078]
[1745291782570,0.00952441,1574.0,1573.9,9.4785]
[1745291783069,1.28014441,1574.0,1573.9,9.4785]
[1745291783274,1.28014441,1574.0,1573.9,15.8005]
[1745291783575,1.28014441,1574.0,1573.9,56.6005]
[1745291783968,0.00952441,1574.0,1573.9,56.6005]
[1745291784168,0.00952441,1574.0,1573.9,50.2785]
[1745291785683,2.14687,1574.5,1574.2,1.27043]
[1745291785975,3.03923,1574.5,1574.3,2.14387]
[1745291786277,1.769,1574.5,1574.4,1.27029]
[1745291788980,3.03921,1574.5,1574.4,1.27029]
[1745291789478,1.769,1574.5,1574.4,1.27029]
[1745291790277,1.769,1574.5,1574.4,3.04399]
[1745291790488,1.769,1574.5,1574.3,1.77742441]
[1745291790680,1.769,1574.5,1574.3,0.88302441]
[1745291790681,1.27029,1574.4,1574.3,0.88302441]
[1745291791177,1.27029,1574.4,1574.3,41.68302441]
[1745291791376,1.27029,1574.4,1574.3,40.80952441]
[1745291791679,2.14529,1574.4,1574.3,40.80952441]
[1745291791876,1.769,1574.5,1574.3,40.80952441]
[1745291792075,1.769,1574.5,1574.4,1.27029]
[1745291792276,1.769,1574.5,1574.4,3.88039]
[1745291792472,1.769,1574.5,1574.4,2.15149]
[1745291792677,1.769,1574.5,1574.3,40.80952441]
[1745291792977,3.03925,1574.5,1574.3,42.07985441]
[1745291793376,1.7637,1574.4,1574.3,42.07985441]
[1745291794086,1.7637,1574.4,1574.3,44.82075441]
[1745291794284,1.7637,1574.4,1574.3,4.02075441]
[1745291794781,0.00952441,1574.6,1574.3,43.55042441]
[1745291794987,0.00952441,1574.6,1574.5,1.27021]
[1745291794988,1.78992441,1574.6,1574.5,1.27021]
[1745291795188,3.06005441,1574.6,1574.5,1.27021]
[1745291795583,1.78992441,1574.6,1574.4,1.8547]
[1745291795781,3.05063,1574.5,1574.3,44.90352441]
[1745291795987,1.7804,1574.4,1574.3,44.90352441]
[1745291796188,1.7804,1574.4,1574.3,46.75822441]
[1745291796581,3.05069,1574.4,1574.3,46.75822441]
[1745291796783,3.05069,1574.4,1574.3,40.80952441]
[1745291797589,3.05069,1574.4,1574.3,0.00952441]
[1745291799490,2.17556,1574.5,1574.3,0.00952441]
[1745291799691,3.86966,1574.5,1574.3,2.77852441]
[1745291799893,1.6941,1574.5,1574.4,3.11329]
[1745291801891,2.96431,1574.5,1574.4,3.11329]
[1745291802987,0.00952441,1574.6,1574.5,1.27021]
[1745291803194,4.498,1575.4,1574.5,1.27021]
[1745291803195,1.26982,1575.0,1574.9,1.26986]
[1745291803380,2.94508,1575.1,1574.9,45.298]
[1745291803583,1.6753,1575.0,1574.9,46.56789]
[1745291803790,1.6753,1575.0,1574.9,49.22069]
[1745291804788,0.00952441,1575.1,1575.0,1.26981]
[1745291805289,0.00952441,1575.1,1574.9,49.22065]
[1745291805507,0.00952441,1575.1,1575.0,1.26981]
[1745291805708,1.72892441,1575.1,1575.0,1.26981]